[Event "Turkish Youth Championships 2023"]
[Site "Samsun"]
[Date "2023.05.19"]
[Round "1.2"]
[White "Akbas, Umut Ata"]
[Black "Aksoy, Mahmut Gokberk"]
[Result "1-0"]
[WhiteElo "2417"]
[BlackElo "1156"]
[Annotator "TA"]
[PlyCount "131"]
[EventDate "2023.05.19"]
[EventType "swiss"]
[EventCountry "TUR"]
[TimeControl "5400+30"]

{[%evp 12,129,12,9,34,18,18,0,-1,11,28,29,18,0,19,-14,0,-20,-20,-14,-14,-22,0,-10,-3,-9,-9,-18,15,22,101,62,235,219,187,214,285,214,293,266,476,456,438,473,466,437,527,526,519,510,510,516,521,518,1108,1108,1108,1097,1097,1097,1082,1060,954,939,785,544,29957,29958,5739,5739,29969,29970,29974,29973,29977,29978,29979,29978,29983,29984,29984,29984,29984,29985,29985,29986,29986,29984,29984,29984,29984,29985,29987,29988,29989,29987,29989,29987,29989,29988,29988,29989,29994,29990,29990,29991,29991,29992,29992,29990,29990,29990,29994,29995,29995,29996,29996,29997,29998,29999]} 1. c4 e5 2. Nc3 Nf6 3. Nf3 Nc6 4. g3 Bb4 5. Nd5 d6 6. Bg2 O-O 7. O-O h6 {[%emt 0:17:00] A29: English Opening: Four Knights Variation with 4 g3.} 8. Nxb4 {[%emt 0:11:30]} Nxb4 {[%emt 0:00:00] [#]} 9. d4 $146 {[%emt 0:00:30]} ({Predecessor:} 9. d3 a5 10. e4 Qe7 11. Nh4 Rd8 12. h3 c5 13. f4 Bd7 14. Kh2 a4 15. Be3 {½-½ Sivic,J (2267)-Fajs,B (2454) SLO-CupT F3 email 2006}) 9... e4 {[%emt 0:05:00] The position is equal.} 10. Nd2 {[%emt 0:00:30]} Re8 {[%emt 0:00:30]} 11. a3 {[%emt 0:01:30]} Na6 {[%emt 0:05:30]} 12. b4 {[%emt 0:01:30]} c6 {[%emt 0:02:30]} 13. Nb3 {[%emt 0:10:30]} d5 {[%emt 0:08:30]} 14. cxd5 {[%emt 0:00:30]} Nxd5 {[%emt 0:01:30]} 15. Qc2 {[%emt 0:04:30]} Bf5 {[%emt 0:08:30]} 16. e3 {[%emt 0:02:30]} Bg6 {[%emt 0:05:30]} 17. Bb2 {[%emt 0:01:30]} Nac7 {[%emt 0:06:30]} 18. Rfe1 {[%emt 0:00:30]} Qe7 {[%emt 0:03:30]} 19. Na5 {[%emt 0:12:30]} Nb5 {[%emt 0:02:30]} 20. a4 {[%emt 0:01:30]} Nxb4 {[%emt 0:02:30]} (20... Nd6 $11 {keeps the balance.}) 21. Qb3 {[%emt 0:01:30]} Nd3 $2 {[%emt 0:03:30] Loses the game.} (21... Nc7 $14) 22. axb5 $18 {[%emt 0:00:30]} Nxe1 {[%emt 0:00:30]} 23. Rxe1 {[%emt 0:00:00]} Rab8 {[%emt 0:02:30] Black is weak on the dark squares} 24. b6 {[%emt 0:03:00]} ({Don't play} 24. bxc6 bxc6 25. Qc2 Qc7 $18) 24... a6 {[%emt 0:02:30]} 25. Ba3 {[%emt 0:01:30]} Qe6 {[%emt 0:01:30]} (25... Qf6 {might work better.} 26. Nc4 Rbd8) 26. Qxe6 {[%emt 0:00:30]} Rxe6 {[%emt 0:00:30]} 27. Bf1 {[%emt 0:01:30]} Bf5 {[%emt 0:01:30]} 28. Bc5 {[%emt 0:02:30]} Rg6 {[%emt 0:02:30] [#]} 29. Nxb7 $1 {[%emt 0:02:30][%mdl 576] Remove Defender} Rxb7 {[%emt 0:02:21]} 30. Bxa6 {[%emt 0:00:30]} Rb8 {[%emt 0:00:00]} 31. b7 {[%emt 0:00:00]} Re6 {[%emt 0:00:43]} 32. Ba7 {[%emt 0:00:00]} Ree8 {[%emt 0:00:10]} (32... Rd8 $142 33. Rb1 (33. b8=B c5 $18) 33... Ree8) 33. Bxb8 {[%emt 0:00:30]} Rxb8 {[%emt 0:00:04][%mdl 4096] Endgame KRB-KRB} 34. Rc1 {[%emt 0:00:00]} Bd7 {[%emt 0:00:15] [#]} 35. d5 $1 {[%emt 0:00:00][%mdl 576] Promotion} cxd5 {[%emt 0:00:30]} (35... Rxb7 36. Bxb7) 36. Rc8+ {[%emt 0:00:30]} Bxc8 {[%emt 0:00:42]} 37. bxc8=Q+ {[%emt 0:00:00]} Rxc8 {[%emt 0:00:27]} 38. Bxc8 {[%emt 0:00:00] KB-KP} g5 {[%emt 0:00:10]} 39. g4 {[%emt 0:00:30]} Kg7 {[%emt 0:00:53]} 40. Bb7 {[%emt 0:00:00]} Kg6 {[%emt 0:00:00]} 41. Bxd5 {[%emt 0:00:00] ?ev?.} f5 {[%emt 0:00:15]} 42. h3 {[%emt 0:00:30]} h5 {[%emt 0:00:30]} 43. Kg2 {[%emt 0:00:30]} h4 {[%emt 0:00:49]} 44. Be6 {[%emt 0:00:30]} f4 {[%emt 0:00:30]} 45. Bf5+ {[%emt 0:00:30]} Kf6 {[%emt 0:00:30]} 46. Bxe4 {[%emt 0:00:30] KB-K3P} Ke5 {[%emt 0:00:30]} 47. Kf3 {[%emt 0:00:30]} fxe3 {[%emt 0:00:30]} 48. Kxe3 {[%emt 0:00:30] KB-KPP} Kf6 {[%emt 0:00:30]} 49. Kd4 {[%emt 0:00:30]} Ke6 {[%emt 0:00:30]} 50. Bf5+ {[%emt 0:00:30]} Kf6 {[%emt 0:00:30]} 51. Kd5 {[%emt 0:00:00]} Kg7 {[%emt 0:00:00]} 52. Ke6 {[%emt 0:00:00]} Kh6 {[%emt 0:00:00]} 53. Be4 {[%emt 0:00:00]} Kg7 {[%emt 0:00:11]} 54. Kf5 {[%emt 0:00:00]} Kh6 {[%emt 0:00:30]} 55. Bd5 {[%emt 0:00:00]} Kg7 {[%emt 0:00:30]} 56. Kxg5 {[%emt 0:00:00] KB-KP} Kh7 {[%emt 0:00:30]} 57. f4 {[%emt 0:00:30]} Kg7 {[%emt 0:00:30]} 58. f5 {[%emt 0:00:30]} Kf8 {[%emt 0:00:30]} 59. Kf6 {[%emt 0:00:30]} Ke8 {[%emt 0:00:30]} 60. Kg7 {[%emt 0:00:30]} Ke7 {[%emt 0:00:00]} 61. f6+ {[%emt 0:00:00]} Ke8 {[%emt 0:00:00]} 62. f7+ {[%emt 0:00:00]} Kd7 {[%emt 0:00:00]} 63. f8=Q {[%emt 0:00:00]} Kc7 {[%emt 0:00:00]} 64. Qc5+ {[%emt 0:00:00]} Kb8 {[%emt 0:00:00]} 65. Qb6+ {[%emt 0:00:00]} Kc8 {[%emt 0:00:00]} 66. Be6# {[%emt 0:00:00] Weighted Error Value: White=0.09 (flawless) /Black=0.76} 1-0

[Event "Turkish Youth Championships 2023"]
[Site "Samsun"]
[Date "2023.05.19"]
[Round "1.3"]
[White "Ozlu, Arda"]
[Black "Tarlabasi, Emirhan"]
[Result "0-1"]
[WhiteElo "1163"]
[BlackElo "2300"]
[Annotator "TA"]
[PlyCount "62"]
[EventDate "2023.05.19"]
[EventType "swiss"]
[EventCountry "TUR"]
[TimeControl "5400+30"]

{[%evp 10,62,32,18,24,15,12,25,14,-17,-14,-44,7,0,-23,-110,-122,-125,-121,-205,-218,-286,-292,-287,-184,-446,-444,-536,-436,-427,-423,-421,-420,-434,-425,-433,-436,-462,-450,-597,-603,-571,-516,-672,-647,-828,-827,-825,-819,-915,-897,-895,-888,-874,-874]} 1. e4 e6 2. Nf3 d5 3. exd5 exd5 4. d4 Nf6 5. Bd3 c5 6. c3 Be7 {B22: Sicilian: 2 c3.} 7. dxc5 Bxc5 8. O-O O-O {White has an edge.} 9. Nd4 {[%emt 0:08:00]} Nc6 {[%emt 0:17:00][%cal Bb8c6,Bc6e5,Be5d3][%mdl 32]} 10. Be3 {[%emt 0:00:30] [#] Hoping for Nxc6.} Bd6 {[%emt 0:04:30] [#]} (10... Ng4 $15) 11. Nd2 $146 {[%emt 0:00:30]} (11. h3 {simplifies} Ne5 12. Be2 Re8 13. Nd2) ({Predecessor:} 11. h3 Ne5 12. Bc2 a6 13. Nd2 Bd7 14. N2f3 Ng6 15. Qd2 Ne4 16. Qd1 Re8 17. Rc1 h6 18. Bb3 Be6 19. Nxe6 fxe6 {1-0 Caglar,S (2250)-Atakishiyev,E (2223) AZE-TUR U16 Online Battle blitz 2020}) 11... Ng4 {[%emt 0:02:30]} 12. h3 {[%emt 0:01:30]} (12. N2f3 $11 {keeps the balance.}) 12... Nxe3 $40 {[%emt 0:00:30][%mdl 128] Black has strong attack. Black continues to play with concentration.} 13. fxe3 {[%emt 0:00:00]} Qg5 {[%emt 0:01:30][%csl LRe3,LRh3]} 14. Qf3 {[%emt 0:08:00]} (14. Qe2 $17 {is a better defense.}) 14... Ne5 $19 {[%emt 0:02:30][%csl LRd3,LRf3]} 15. Qxd5 {[%emt 0:02:30]} Qxe3+ {[%emt 0:00:30]} 16. Kh1 {[%emt 0:00:00]} Nxd3 {[%emt 0:02:30]} ({Not} 16... Qxd3 17. Qxd6 Qxd2 18. Qxe5 $11) 17. Qxd6 {[%emt 0:02:00]} (17. Nc4 Nf2+ 18. Rxf2 Qxf2 19. Nxd6) 17... Qxd2 {[%emt 0:01:30]} 18. Kg1 {[%emt 0:01:30]} Qe3+ {[%emt 0:00:30]} 19. Kh2 {[%emt 0:00:30]} Qe5+ {[%emt 0:00:30]} (19... Nxb2 $2 {too greedy.} 20. Rae1 Qh6 21. Qxh6 gxh6 22. Rf6 $19) 20. Qxe5 {[%emt 0:00:30]} Nxe5 {[%emt 0:00:00]} 21. Rae1 {[%emt 0:00:30]} f6 {[%emt 0:00:00] Black is clearly winning.} 22. Nb5 {[%emt 0:00:30]} Bd7 {[%emt 0:00:30]} 23. Nd6 {[%emt 0:00:00]} Bc6 {[%emt 0:00:30]} 24. Re3 {[%emt 0:00:00]} Rad8 {[%emt 0:00:30]} 25. Nf5 {[%emt 0:00:30]} Rfe8 {[%emt 0:00:00]} 26. Rf2 {[%emt 0:00:30]} g6 {[%emt 0:00:00]} 27. Nd4 {[%emt 0:03:30] [#]} Ng4+ $1 {[%emt 0:01:30][%mdl 512]} 28. hxg4 {[%emt 0:00:30]} Rxe3 {[%emt 0:00:00]} 29. Rxf6 {[%emt 0:00:00]} Rf8 {[%emt 0:00:00]} 30. Rd6 {[%emt 0:00:00]} Rf2 {[%emt 0:00:30][%csl LRb2,LRg2]} 31. Nxc6 {[%emt 0:00:30]} bxc6 {[%emt 0:00:00] Weighted Error Value: White=0.61/Black=0.24 (precise)} 0-1

[Event "Turkish Youth Championships 2023"]
[Site "Samsun"]
[Date "2023.05.19"]
[Round "1.4"]
[White "Cilek, Bora"]
[Black "Aygin, Kerem"]
[Result "1-0"]
[WhiteElo "2285"]
[BlackElo "1259"]
[Annotator "TA"]
[PlyCount "77"]
[EventDate "2023.05.19"]
[EventType "swiss"]
[EventCountry "TUR"]
[TimeControl "5400+30"]

{[%evp 16,77,25,25,66,15,17,13,17,13,20,0,66,29,22,16,15,36,22,-6,0,-24,163,165,251,134,133,121,97,102,411,422,423,412,658,325,324,323,320,316,316,316,316,306,310,279,274,274,274,220,292,264,760,645,29968,29971,29973,29974,29973,29974,29988,29989,29992,29993]} 1. e4 c5 2. c3 Nf6 3. e5 Nd5 4. d4 cxd4 5. Nf3 Nc6 6. cxd4 e6 7. a3 d6 8. Bd3 Be7 9. O-O Qb6 {B22: Sicilian: 2 c3.} 10. Nc3 {[%emt 0:06:30]} (10. Re1 $14) 10... Nxc3 $11 {[%emt 0:18:30]} 11. bxc3 {[%emt 0:00:00]} dxe5 {[%emt 0:01:30] The position is equal.} 12. dxe5 {[%emt 0:00:00]} Qc7 {[%emt 0:02:30]} 13. Qe2 {[%emt 0:01:30]} O-O {[%emt 0:01:30]} (13... b6 $11) 14. Qe4 {[%emt 0:00:30][%csl Gd3][%cal Re4h7]} g6 {[%emt 0:03:30] [#]} 15. Re1 $146 {[%emt 0:06:30][%mdl 2048] White has the initiative.} ({Predecessor:} 15. Bh6 Rd8 16. h4 b6 17. Rad1 Bb7 18. Qf4 Na5 19. h5 Bxf3 20. gxf3 Qxc3 21. Be4 {1-0 Ziegler,P (1778)-Soergel,F (2033) Mittelfranken Mitte-ch 9899 1999 (1)}) 15... b6 {[%emt 0:06:30]} 16. Bh6 {[%emt 0:02:30]} Rd8 {[%emt 0:02:30]} 17. Rad1 {[%emt 0:00:30]} Bb7 {[%emt 0:02:30][%cal Oc6d4] aiming for ...Nd4!} 18. Qf4 {[%emt 0:02:30] Wards off Nd4} Bxa3 $2 {[%emt 0:04:30]} (18... Rd7 $11 {and Black stays safe.}) 19. h4 $1 $18 {[%emt 0:10:30][%cal Oh4h5]} (19. Qf6 Bf8 20. Bxf8 Rxf8 $11) 19... Bf8 {[%emt 0:09:30] [#]} (19... Na5 {was necessary.}) 20. h5 $1 {[%emt 0:04:30][%mdl 512]} Ne7 $16 {[%emt 0:08:30]} (20... gxh5 $2 21. Qg5+ Kh8 22. Bxf8 $18) 21. Bxf8 $1 {[%emt 0:00:30]} (21. Ng5 $2 Nd5 22. Qh4 Bxh6 $19) 21... Rxf8 {[%emt 0:00:30] [#]} 22. Ng5 {[%emt 0:05:30] Qh2 would be deadly. White is more active.} Nd5 $2 {[%emt 0:11:30][%mdl 8192] [#]} (22... Qxc3 $2 23. Qh2 Qc6 24. Be4 $18) (22... f6 $16 {is a better chance.} 23. Nxe6 Qc6) 23. Qh2 $1 $18 {[%emt 0:02:30]} Qe7 {[%emt 0:01:30]} (23... Nxc3 $2 24. Rc1 (24. hxg6 fxg6 25. Nxe6 Qe7 $18) 24... Qe7 25. Nxh7 $18) 24. Nxh7 {[%emt 0:00:30][%mdl 64] Remove Defender} Kg7 {[%emt 0:07:30]} (24... g5 $142 25. Nxf8 Kxf8) 25. c4 {[%emt 0:01:30]} (25. hxg6 $142 fxg6 26. Nxf8 Rxf8 27. Re4) 25... Rh8 {[%emt 0:00:39]} 26. hxg6 {[%emt 0:00:30]} fxg6 {[%emt 0:01:08]} 27. Qg3 {[%emt 0:00:30][%csl Gd3][%cal Rg3g6]} Rxh7 {[%emt 0:00:55]} 28. Qxg6+ {[%emt 0:00:30]} ({Stronger than} 28. cxd5 Rah8 29. Qxg6+ (29. Bxg6 $2 Rh1#) 29... Kf8 $11) 28... Kh8 {[%emt 0:00:42]} 29. Qxh7+ {[%emt 0:02:30]} Qxh7 {[%emt 0:00:47]} 30. Bxh7 {[%emt 0:00:00]} Kxh7 {[%emt 0:03:33]} 31. cxd5 {[%emt 0:00:00]} Bxd5 {[%emt 0:00:00][%mdl 4096] Endgame KRR-KRB} 32. f4 {[%emt 0:00:00][%cal Bf2f4,Bf4f5,Bf5f6,Bf6f7][%mdl 32] Hoping for f5!} Rg8 {[%emt 0:01:47]} 33. Rd2 {[%emt 0:00:00][%cal Of4f5] f5! is the strong threat.} Rg4 $2 {[%emt 0:00:59] [#]} (33... Rf8 34. g3 Kg6) 34. f5 $1 {[%emt 0:00:30][%cal Od2d5] White wants to mate with Rxd5!} Rg5 {[%emt 0:02:04] [#]} (34... Kg8 35. fxe6) 35. Rxd5 $1 {[%emt 0:02:30][%mdl 576] Promotion. White mates.} exd5 {[%emt 0:00:51]} (35... Rxf5 36. Rd7+) 36. e6 {[%emt 0:00:00]} Rg8 {[%emt 0:00:55]} 37. f6 {[%emt 0:00:00]} Kg6 {[%emt 0:01:03]} 38. f7 {[%emt 0:00:30]} Rc8 {[%emt 0:03:31]} 39. Rf1 {[%emt 0:00:00] Weighted Error Value: White=0.20 (precise) /Black=0.64} 1-0

[Event "Turkish Youth Championships 2023"]
[Site "Samsun"]
[Date "2023.05.19"]
[Round "1.5"]
[White "Temiz, Melih Efe"]
[Black "Angun, Batu"]
[Result "0-1"]
[WhiteElo "1160"]
[BlackElo "2205"]
[Annotator "TA"]
[PlyCount "92"]
[EventDate "2023.05.19"]
[EventType "swiss"]
[EventCountry "TUR"]
[TimeControl "5400+30"]

{[%evp 9,92,-18,36,2,0,-2,6,11,4,-4,1,12,4,0,26,14,22,36,21,24,70,-16,0,-12,0,-20,13,-43,63,66,66,42,35,15,7,9,45,22,54,52,70,40,50,-7,0,-5,-4,-6,0,-47,-32,-85,-37,-74,0,0,18,4,14,18,92,0,42,0,41,29,18,-103,-113,-158,-151,-181,-130,-130,-130,-254,-223,-673,-670,-695,-707,-705,-682,-1117,-1094]} 1. e4 c5 2. Nf3 e6 3. d4 cxd4 4. Nxd4 Nc6 5. Be3 a6 (5... Nf6 $11) 6. Bc4 {B44: Sicilian: Taimanov: 5 Nb5.} Nf6 7. Nd2 Qc7 8. O-O {[#] The position is equal.} Be7 $146 ({Predecessor:} 8... b5 9. Bd3 Bb7 10. Nxc6 dxc6 11. f4 Be7 12. c4 e5 13. Qe2 O-O 14. fxe5 Qxe5 {0-1 Derouineau,J (2326)-Moreira,J (2340) Latin Cup 6th B03 corr 2003}) 9. Re1 O-O 10. Nxc6 bxc6 11. Bg5 d5 12. e5 Ne8 {[%emt 0:05:30]} (12... dxc4 $2 13. exf6 gxf6 14. Bh6 $18) 13. Bxe7 {[%emt 0:19:00]} Qxe7 {[%emt 0:00:30]} 14. Bd3 {[%emt 0:01:30]} f5 {[%emt 0:00:30]} (14... c5 $11 {might be stronger.}) 15. f4 {[%emt 0:00:30]} (15. c4 $14) 15... c5 {[%emt 0:00:30]} 16. b3 {[%emt 0:06:30]} Bb7 {[%emt 0:01:30]} 17. Qe2 {[%emt 0:01:30]} g5 {[%emt 0:00:30]} 18. Qf2 {[%emt 0:03:30]} ({White should play} 18. fxg5 $1 $11 Qxg5 19. Qe3 Qxe3+ 20. Rxe3) 18... Ng7 {[%emt 0:03:30]} (18... gxf4 $15 19. Qxf4 Kh8) 19. fxg5 $1 $14 {[%emt 0:06:30]} Qxg5 {[%emt 0:00:30]} 20. Nf3 {[%emt 0:00:30]} Qe7 {[%emt 0:00:00]} 21. Qh4 {[%emt 0:03:30]} Qxh4 {[%emt 0:01:00]} 22. Nxh4 {[%emt 0:00:30][%cal Ob3b4]} Kf7 {[%emt 0:00:00]} 23. Re3 {[%emt 0:01:30][%cal Be1e3,Be3f3,Bf3f4][%mdl 32]} Rg8 {[%emt 0:00:00]} 24. Rf1 {[%emt 0:01:30]} Ne8 {[%emt 0:02:30]} 25. Ref3 {[%emt 0:07:30]} (25. Rh3 $5 {[%cal Rd3f5]}) 25... Ke7 {[%emt 0:01:30]} 26. g3 {[%emt 0:05:30]} (26. Rc1 $14) 26... Nc7 {[%emt 0:00:30]} 27. Rf4 {[%emt 0:18:30]} d4 {[%emt 0:00:30] White should prevent ...Nd5.} 28. Bc4 {[%emt 0:00:30]} Be4 {[%emt 0:00:30]} 29. R1f2 {[%emt 0:00:30]} (29. Nf3 $11 {was preferrable.}) 29... a5 {[%emt 0:00:30]} 30. a4 {[%emt 0:00:30]} (30. Nf3 $15) 30... Rab8 {[%emt 0:00:30]} (30... h5 $17) 31. Nf3 {[%emt 0:00:30]} Bd5 {[%emt 0:00:30] Black is more active.} ({Better is} 31... Rg7 $17) 32. Nd2 $11 {[%emt 0:00:30]} Bc6 {[%emt 0:00:30]} 33. Rh4 {[%emt 0:00:30]} Rg7 {[%emt 0:00:30]} 34. Rh6 {[%emt 0:01:30][%cal Of2f5]} Rf8 {[%emt 0:03:30]} (34... Be4 $11) 35. Kf1 {[%emt 0:00:30]} ({White should try} 35. Bd3 $16) 35... Rff7 {[%emt 0:02:30]} 36. Rh4 {[%emt 0:05:30]} Na8 {[%emt 0:07:30]} 37. Ke2 {[%emt 0:04:26]} (37. Bb5 $5 {[%cal Rb5c6]} Bd5 38. Bc4 $11) 37... Nb6 {[%emt 0:00:30]} 38. Rf1 {[%emt 0:08:08] [#]} (38. Bb5 $11 {remains equal.} Bd5 39. Kd3) 38... Nd7 $1 $17 {[%emt 0:01:30]} 39. Nb1 {[%emt 0:02:27]} Nxe5 {[%emt 0:00:30]} 40. Na3 {[%emt 0:00:04]} Ng6 {[%emt 0:01:30]} (40... Kf6 $19 41. Rh6+ Rg6) 41. Rh5 {[%emt 0:00:55]} Rf6 {[%emt 0:00:30]} 42. g4 {[%emt 0:01:27]} (42. Kd2 $17) 42... Be8 $19 {[%emt 0:02:30] And now ...Ne5 would win.} ({Stronger than} 42... fxg4 43. Rxc5 Bf3+ 44. Kd2 $11) 43. Kd2 $2 {[%emt 0:02:09]} (43. Bb5 Bf7 44. Nc4) 43... Ne5 {[%emt 0:00:30][%mdl 64] [#] Discovered Attack, Deflection. Black is clearly winning.} ({Inferior is} 43... fxg4 44. Rxc5 Rxf1 45. Bxf1 $15) 44. g5 {[%emt 0:02:57]} Bxh5 {[%emt 0:00:00]} 45. gxf6+ {[%emt 0:00:28]} Kxf6 {[%emt 0:00:00]} 46. Nb5 {[%emt 0:00:30]} Rg2+ {[%emt 0:00:30] Weighted Error Value: White=0.47/Black=0.23 (precise)} 0-1

[Event "Turkish Youth Championships 2023"]
[Site "Samsun"]
[Date "2023.05.19"]
[Round "1.6"]
[White "Isilak, Enes"]
[Black "Sozen, Umutcan"]
[Result "1-0"]
[WhiteElo "2181"]
[BlackElo "1156"]
[Annotator "TA"]
[PlyCount "51"]
[EventDate "2023.05.19"]
[EventType "swiss"]
[EventCountry "TUR"]
[TimeControl "5400+30"]

{[%evp 12,51,31,17,38,34,45,15,103,61,68,66,103,75,79,86,110,50,145,151,221,178,203,202,298,289,352,351,350,357,370,374,362,357,427,427,768,775,723,588,1316,1233]} 1. d4 Nf6 2. c4 g6 3. g3 Bg7 4. Bg2 O-O 5. Nc3 c6 6. e4 {[%cal Be2e4,Be4e5][%mdl 32]} d6 7. Nf3 d5 {7...Qb6 is a critical line. E62: King's Indian: Fianchetto: 6...c6 and Panno Variation (6...Nc6) without ...a6.} 8. e5 Ne8 {[#]} 9. O-O $146 ({Predecessor:} 9. c5 Bg4 10. h3 Bf5 11. Nh4 Be6 12. O-O Qc8 13. Kh2 f6 14. f4 Nc7 15. Qd3 {½-½ Monteiro,A (1954)-Spinola,S (1691) CPV-ch Sar 2017 (2)}) 9... Bg4 (9... dxc4 $11 10. Qe2 Nc7) 10. h3 Bxf3 11. Qxf3 {[%cal Rc4d5]} e6 12. Be3 Nc7 13. b3 {White has more active pieces.} Nd7 14. Rfd1 ({White should try} 14. Qe2 $16) 14... dxc4 (14... f6 $14) 15. bxc4 $16 {[%emt 0:04:00]} Nb6 {[%emt 0:20:00]} (15... f6 $16) 16. Bf1 {[%emt 0:00:30]} Qd7 {[%emt 0:02:30]} 17. Ne4 {[%emt 0:00:30][%cal Bc3e4,Be4c5,Bc5b3,Bb3a5][%mdl 32]} Rad8 {[%emt 0:02:30]} (17... Na4 {was necessary.} 18. Rab1 Rfb8) 18. Bg5 $18 {[%emt 0:00:00]} f5 {[%emt 0:08:30]} 19. Nc5 {[%emt 0:01:00]} ({Don't do} 19. exf6 h6 $18) 19... Qc8 {[%emt 0:01:30]} 20. Bxd8 {[%emt 0:00:00]} Rxd8 {[%emt 0:00:30]} 21. Rab1 {[%emt 0:00:00]} Bf8 {[%emt 0:02:30]} 22. Nb3 {[%emt 0:00:30]} Qd7 {[%emt 0:02:30]} 23. Na5 {[%emt 0:01:30] White is clearly winning.} Na6 {[%emt 0:04:30]} (23... Rb8 $142 24. c5 Nbd5 25. Rxb7 Rxb7) 24. c5 {[%emt 0:00:30]} Nd5 {[%emt 0:01:30]} 25. Rxb7 {[%emt 0:00:00]} Qc8 {[%emt 0:00:30]} 26. Bxa6 {[%emt 0:00:00] Weighted Error Value: White=0.22 (precise) /Black=0.47} 1-0

[Event "Turkish Youth Championships 2023"]
[Site "Samsun"]
[Date "2023.05.19"]
[Round "1.7"]
[White "Senocak, Umut"]
[Black "Biyiksiz, Ali Batuhan"]
[Result "0-1"]
[WhiteElo "1109"]
[BlackElo "2107"]
[Annotator "TA RC"]
[PlyCount "54"]
[EventDate "2023.05.19"]
[EventType "swiss"]
[EventCountry "TUR"]
[TimeControl "5400+30"]

{[%evp 9,54,13,22,-7,-9,-21,-18,-20,-9,-21,-8,-59,-55,-61,-65,-70,-28,-83,-77,-85,-84,-79,-96,-99,-82,-128,-90,-74,-83,-69,-35,-103,-103,-88,-109,-375,-375,-375,-365,-347,-330,-610,-579,-705,-542,-525,-517]} 1. e4 c5 2. Nf3 e6 3. Nc3 a6 4. Be2 b5 5. a3 Bb7 6. d3 {B40: Sicilian: 2...e6, Unusual lines.} d6 7. O-O Nf6 {[%emt 0:08:00]} 8. Re1 {[%emt 0:18:30] The position is equal.} Be7 {[%emt 0:00:30]} 9. Bf4 {[%emt 0:21:30]} O-O {[%emt 0:00:30] [#]} 10. b4 $146 {[%emt 0:07:30]} (10. e5 $11 dxe5 11. Nxe5) ({Predecessor:} 10. e5 dxe5 11. Bxe5 Nc6 12. Bg3 Nh5 13. Be5 Nxe5 14. Nxe5 Nf6 15. Bf3 Bxf3 16. Qxf3 {0-1 Westerman,M (1441)-Smits,B (1628) Hengelo U16 op 2005 (2)}) 10... cxb4 {[%emt 0:00:30]} 11. axb4 {[%emt 0:00:30]} Nc6 {[%emt 0:00:30]} 12. Rb1 {[%emt 0:09:30]} Rc8 {[%emt 0:03:30]} 13. Bd2 {[%emt 0:07:30]} (13. Na2 $11) 13... d5 $1 $17 {[%emt 0:00:30]} 14. exd5 {[%emt 0:00:30]} exd5 {[%emt 0:00:30]} ({Reject} 14... Nxb4 15. dxe6 fxe6 16. Nxb5 Nxc2 17. Na7 Nxe1 18. Rxb7 Nxf3+ 19. Bxf3 $11) ({Of course not} 14... Nxd5 $6 15. Nxd5 Qxd5 16. c4 $11) 15. Na2 {[%emt 0:00:30]} d4 {[%emt 0:00:30]} 16. h3 {[%emt 0:06:30]} Nd5 {[%emt 0:00:30]} 17. Nh2 {[%emt 0:01:30]} ({White should play} 17. Bf1) 17... Bg5 {[%emt 0:03:30] Black is more active.} 18. Bf3 {[%emt 0:01:30]} Bxd2 {[%emt 0:02:30]} 19. Qxd2 {[%emt 0:00:30]} h6 {[%emt 0:00:30]} (19... Qd6 $5 {[%cal Rc6e5]} 20. Qg5 f5 $17) 20. Nf1 {[%emt 0:01:30]} (20. Nc1 $15) 20... Qd6 {[%emt 0:12:30] Strongly threatening ...Ne5.} 21. Ng3 {[%emt 0:01:30] [#]} f5 $1 {[%emt 0:00:30]} 22. Ne2 $2 {[%emt 0:05:29][%mdl 8192] [#] This costs White the game.} (22. Qe2 $17) 22... Ne5 $1 $19 {[%emt 0:03:30] ...Nxf3+ is the strong threat.} 23. Nxd4 {[%emt 0:07:42][%cal Oc2c4]} Nxf3+ {[%emt 0:00:30]} 24. Nxf3 {[%emt 0:00:26]} Nf4 {[%emt 0:00:00][%cal Bd5f4,Bf4g2,Bg2h4][%mdl 32]} 25. Ne5 {[%emt 0:02:25]} ({Don't blunder} 25. Nh4 $2 g5 26. Nf3 Bxf3 27. gxf3 Qd5 $19) (25. Qe3 Rxc2 26. Nc1) 25... Nxg2 {[%emt 0:01:00] Black is clearly winning.} 26. Re2 {[%emt 0:01:15]} Nh4 {[%emt 0:02:30]} 27. f4 {[%emt 0:01:58]} Qd5 {[%emt 0:00:30] Weighted Error Value: White=0.57/Black=0.14 (very precise)} 0-1